[Event "Kupreichik Memorial Rapid 2019"]
[Site "Minsk"]
[Date "2019.08.16"]
[Round "6.31"]
[White "Sadovnikov, Konstantin"]
[Black "Stsepkina, Yauheniya"]
[Result "1-0"]
[ECO "B23"]
[WhiteElo "1798"]
[BlackElo "1537"]
[Annotator "NA"]
[PlyCount "71"]
[EventDate "2019.08.15"]
[EventType "swiss"]
[EventCountry "BLR"]
[SourceTitle "playchess.com"]
[Source "ChessBase"]
[SourceQuality "1"]
[TimeControl "900+10"]

1. e4 {[%emt 0:00:00]} c5 {[%emt 0:00:00]} 2. Nc3 {[%emt 0:00:00]} Nc6 {[%emt 0:00:00]} 3. f4 {[%emt 0:00:00]} g6 {[%emt 0:00:00]} 4. Nf3 {[%emt 0:00:00]} Bg7 {[%emt 0:00:00]} 5. d3 {[%emt 0:00:00]} d6 {[%emt 0:00:03]} 6. g3 {[%emt 0:00:00]} e6 {[%emt 0:00:01]} 7. Bg2 {[%emt 0:00:00]} Nge7 {[%emt 0:00:01]} 8. O-O {[%emt 0:00:00]} O-O {[%emt 0:00:02]} 9. Be3 {[%emt 0:00:00]} Nd4 {[%emt 0:00:16]} 10. Qd2 {[%emt 0:00:04]} d5 {[%emt 0:00:44]} 11. Nd1 {[%emt 0:01:09]} b6 {[%emt 0:03:07]} 12. e5 {[%emt 0:04:43]} Nxf3+ {[%emt 0:01:28]} 13. Bxf3 {[%emt 0:00:02]} Bb7 {[%emt 0:00:05]} 14. c3 {[%emt 0:01:54]} Qd7 {[%emt 0:03:35]} 15. Bf2 {[%emt 0:02:22]} Nc6 {[%emt 0:00:44]} 16. Ne3 {[%emt 0:00:22]} Rfd8 {[%emt 0:00:41]} 17. Ng4 {[%emt 0:00:24]} Qe7 {[%emt 0:00:24]} 18. h3 {[%emt 0:01:00]} Rab8 {[%emt 0:02:12]} 19. Rac1 {[%emt 0:01:13]} h5 {[%emt 0:01:23]} 20. Nh2 {[%emt 0:00:01]} Bh6 {[%emt 0:00:11]} 21. Qe2 {[%emt 0:00:38]} Rbc8 {[%emt 0:01:11]} 22. Rfd1 {[%emt 0:01:02]} Qc7 {[%emt 0:00:41]} 23. Be3 {[%emt 0:00:50]} d4 {[%emt 0:00:11]} 24. Bf2 {[%emt 0:01:07]} Ba8 {[%emt 0:00:47]} 25. Be4 {[%emt 0:00:23]} Qd7 {[%emt 0:00:56]} 26. Qf3 {[%emt 0:00:14]} Ne7 {[%emt 0:00:21]} 27. c4 {[%emt 0:00:39]} Bxe4 {[%emt 0:00:09]} 28. dxe4 {[%emt 0:00:13]} Nc6 {[%emt 0:00:07]} 29. g4 {[%emt 0:00:08]} hxg4 {[%emt 0:00:16]} 30. Nxg4 {[%emt 0:00:14]} Bg7 {[%emt 0:00:02]} 31. Bh4 {[%emt 0:00:12]} Re8 {[%emt 0:00:19]} 32. Qg3 {[%emt 0:00:56]} Ne7 {[%emt 0:00:09]} 33. Nf6+ {[%emt 0:00:14]} Bxf6 {[%emt 0:00:03]} 34. Bxf6 {[%emt 0:00:11]} Nf5 {[%emt 0:00:17]} 35. exf5 {[%emt 0:00:07]} exf5 {[%emt 0:00:05]} 36. Qh4 {[%emt 0:00:02]} 1-0

[Event "Kupreichik Memorial Rapid 2019"]
[Site "Minsk"]
[Date "2019.08.16"]
[Round "6.32"]
[White "Tkachou, Viktar"]
[Black "Nikolaev, Dmitry"]
[Result "1-0"]
[ECO "A05"]
[WhiteElo "1791"]
[BlackElo "1677"]
[Annotator "NA"]
[PlyCount "83"]
[EventDate "2019.08.15"]
[EventType "swiss"]
[EventCountry "BLR"]
[SourceTitle "playchess.com"]
[Source "ChessBase"]
[SourceQuality "1"]
[TimeControl "900+10"]

1. Nf3 {[%emt 0:00:00]} Nf6 {[%emt 0:00:00]} 2. c4 {[%emt 0:00:00]} g6 {[%emt 0:00:00]} 3. b3 {[%emt 0:00:00]} Bg7 {[%emt 0:00:00]} 4. Bb2 {[%emt 0:00:00]} O-O {[%emt 0:00:00]} 5. e3 {[%emt 0:00:00]} d6 {[%emt 0:00:04]} 6. d4 {[%emt 0:00:03]} Nc6 {[%emt 0:00:24]} 7. Be2 {[%emt 0:00:04]} Bf5 {[%emt 0:00:58]} 8. O-O {[%emt 0:00:09]} Re8 {[%emt 0:00:41]} 9. a3 {[%emt 0:00:44]} Nd7 {[%emt 0:00:47]} 10. Nbd2 {[%emt 0:00:17]} e5 {[%emt 0:00:46]} 11. d5 {[%emt 0:01:28]} Ne7 {[%emt 0:00:13]} 12. Nh4 {[%emt 0:01:43]} g5 {[%emt 0:02:59]} 13. Nxf5 {[%emt 0:00:35]} Nxf5 {[%emt 0:00:02]} 14. Ne4 {[%emt 0:01:08]} Nh6 {[%emt 0:00:14]} 15. Bh5 {[%emt 0:00:38]} Rf8 {[%emt 0:00:09]} 16. g4 {[%emt 0:01:02]} f5 {[%emt 0:02:36]} 17. gxf5 {[%emt 0:00:18]} Rxf5 {[%emt 0:00:37]} 18. Ng3 {[%emt 0:00:34]} Rf8 {[%emt 0:00:09]} 19. e4 {[%emt 0:02:57]} Nf6 {[%emt 0:03:26]} 20. Bf3 {[%emt 0:00:55]} Qd7 {[%emt 0:01:13]} 21. Bc1 {[%emt 0:00:58]} g4 {[%emt 0:00:02]} 22. Bg2 {[%emt 0:00:04]} Kh8 {[%emt 0:00:01]} 23. Qe2 {[%emt 0:00:41]} Rf7 {[%emt 0:01:06]} 24. Be3 {[%emt 0:00:44]} Raf8 {[%emt 0:00:11]} 25. Bxh6 {[%emt 0:00:51]} Bxh6 {[%emt 0:00:01]} 26. Nf5 {[%emt 0:00:01]} Bg7 {[%emt 0:00:23]} 27. Kh1 {[%emt 0:00:15]} Ng8 {[%emt 0:00:52]} 28. Qxg4 {[%emt 0:00:57]} Ne7 {[%emt 0:00:01]} 29. Bh3 {[%emt 0:00:25]} Nxf5 {[%emt 0:00:38]} 30. exf5 {[%emt 0:00:03]} Rxf5 {[%emt 0:00:40]} 31. Qe4 {[%emt 0:00:46]} Rf4 {[%emt 0:00:40]} 32. Qxf4 {[%emt 0:00:14]} Qxh3 {[%emt 0:00:02]} 33. Qg3 {[%emt 0:00:03]} Qf5 {[%emt 0:00:10]} 34. Rae1 {[%emt 0:00:55]} Bh6 {[%emt 0:00:17]} 35. f3 {[%emt 0:00:31]} Bf4 {[%emt 0:00:06]} 36. Qf2 {[%emt 0:00:09]} Rf6 {[%emt 0:00:10]} 37. Rg1 {[%emt 0:00:04]} Rh6 {[%emt 0:00:02]} 38. Rg2 {[%emt 0:00:06]} Qf7 {[%emt 0:00:26]} 39. Reg1 {[%emt 0:00:11]} Rh3 {[%emt 0:00:03]} 40. Rg8+ {[%emt 0:00:24]} Qxg8 {[%emt 0:00:02]} 41. Rxg8+ {[%emt 0:00:01]} Kxg8 {[%emt 0:00:01]} 42. Qg2+ {[%emt 0:00:01]} 1-0

[Event "Kupreichik Memorial Rapid 2019"]
[Site "Minsk"]
[Date "2019.08.16"]
[Round "6.33"]
[White "Zvereva, Margarita"]
[Black "Pogorelov, Aleksey"]
[Result "1-0"]
[ECO "D04"]
[WhiteElo "1678"]
[BlackElo "1548"]
[Annotator "NA"]
[PlyCount "85"]
[EventDate "2019.08.15"]
[EventType "swiss"]
[EventCountry "BLR"]
[SourceTitle "playchess.com"]
[Source "ChessBase"]
[SourceQuality "1"]
[TimeControl "900+10"]

1. d4 {[%emt 0:00:00]} d5 {[%emt 0:00:00]} 2. Nf3 {[%emt 0:00:00]} Nf6 {[%emt 0:00:00]} 3. e3 {[%emt 0:00:00]} Bf5 {[%emt 0:00:00]} 4. Bd3 {[%emt 0:00:00]} Bg6 {[%emt 0:00:02]} 5. O-O {[%emt 0:00:11]} Nc6 {[%emt 0:00:05]} 6. a3 {[%emt 0:00:08]} e6 {[%emt 0:00:06]} 7. c4 {[%emt 0:00:45]} dxc4 {[%emt 0:00:51]} 8. Bxc4 {[%emt 0:00:08]} Bd6 {[%emt 0:00:04]} 9. Nc3 {[%emt 0:00:41]} O-O {[%emt 0:00:09]} 10. Re1 {[%emt 0:01:02]} Ne4 {[%emt 0:00:26]} 11. Bd3 {[%emt 0:00:50]} Nxc3 {[%emt 0:00:36]} 12. bxc3 {[%emt 0:00:02]} Bxd3 {[%emt 0:00:28]} 13. Qxd3 {[%emt 0:00:02]} Ne7 {[%emt 0:00:32]} 14. e4 {[%emt 0:01:13]} c5 {[%emt 0:01:28]} 15. e5 {[%emt 0:03:32]} Bc7 {[%emt 0:00:16]} 16. Ng5 {[%emt 0:03:53]} Ng6 {[%emt 0:00:30]} 17. h4 {[%emt 0:01:19]} h6 {[%emt 0:01:42]} 18. h5 {[%emt 0:02:48]} hxg5 {[%emt 0:00:07]} 19. hxg6 {[%emt 0:00:02]} Qe7 {[%emt 0:01:00]} 20. dxc5 {[%emt 0:01:04]} Rad8 {[%emt 0:00:06]} 21. Qg3 {[%emt 0:00:24]} Qxc5 {[%emt 0:00:47]} 22. Bxg5 {[%emt 0:00:03]} Rd5 {[%emt 0:00:18]} 23. Qh3 {[%emt 0:00:25]} fxg6 {[%emt 0:00:45]} 24. Qxe6+ {[%emt 0:00:02]} Kh7 {[%emt 0:00:02]} 25. Re3 {[%emt 0:00:17]} Qxe3 {[%emt 0:05:21]} 26. Bxe3 {[%emt 0:00:02]} Rxe5 {[%emt 0:00:01]} 27. Qd7 {[%emt 0:00:05]} Bb6 {[%emt 0:00:35]} 28. Bxb6 {[%emt 0:00:04]} axb6 {[%emt 0:00:07]} 29. Qxb7 {[%emt 0:00:08]} Rb5 {[%emt 0:00:17]} 30. a4 {[%emt 0:00:23]} Rb2 {[%emt 0:00:15]} 31. Rf1 {[%emt 0:00:11]} Rf5 {[%emt 0:00:32]} 32. Qc6 {[%emt 0:00:13]} Rc5 {[%emt 0:00:30]} 33. Qf3 {[%emt 0:00:03]} Ra5 {[%emt 0:00:41]} 34. Qh3+ {[%emt 0:00:07]} Rh5 {[%emt 0:00:08]} 35. Qg4 {[%emt 0:00:08]} Rb3 {[%emt 0:00:31]} 36. Qc4 {[%emt 0:00:08]} Rb2 {[%emt 0:00:23]} 37. g3 {[%emt 0:00:04]} Rd2 {[%emt 0:00:09]} 38. Kg2 {[%emt 0:00:09]} Rf5 {[%emt 0:00:37]} 39. Rh1+ {[%emt 0:00:10]} Rh5 {[%emt 0:00:00]} 40. Rxh5+ {[%emt 0:00:06]} gxh5 {[%emt 0:00:01]} 41. Qb4 {[%emt 0:00:08]} g6 {[%emt 0:00:22]} 42. Qxb6 {[%emt 0:00:03]} Ra2 {[%emt 0:00:08]} 43. a5 {[%emt 0:00:04]} 1-0

[Event "Kupreichik Memorial Rapid 2019"]
[Site "Minsk"]
[Date "2019.08.16"]
[Round "6.34"]
[White "Shaban, Aliaksandra"]
[Black "Shakhadanau, Henadzi"]
[Result "1/2-1/2"]
[ECO "B19"]
[WhiteElo "1734"]
[BlackElo "1868"]
[Annotator "NA"]
[PlyCount "72"]
[EventDate "2019.08.15"]
[EventType "swiss"]
[EventCountry "BLR"]
[SourceTitle "playchess.com"]
[Source "ChessBase"]
[SourceQuality "1"]
[TimeControl "900+10"]

1. e4 {[%emt 0:00:00]} c6 {[%emt 0:00:00]} 2. d4 {[%emt 0:00:00]} d5 {[%emt 0:00:00]} 3. Nd2 {[%emt 0:00:00]} dxe4 {[%emt 0:00:00]} 4. Nxe4 {[%emt 0:00:00]} Bf5 {[%emt 0:00:00]} 5. Ng3 {[%emt 0:00:00]} Bg6 {[%emt 0:00:00]} 6. h4 {[%emt 0:00:00]} h6 {[%emt 0:00:00]} 7. Nf3 {[%emt 0:00:01]} Nd7 {[%emt 0:00:00]} 8. h5 {[%emt 0:00:02]} Bh7 {[%emt 0:00:00]} 9. Bd3 {[%emt 0:00:01]} Bxd3 {[%emt 0:00:00]} 10. Qxd3 {[%emt 0:00:01]} Ngf6 {[%emt 0:00:02]} 11. c3 {[%emt 0:00:03]} Qc7 {[%emt 0:00:07]} 12. Bd2 {[%emt 0:00:27]} e6 {[%emt 0:00:02]} 13. O-O-O {[%emt 0:00:08]} c5 {[%emt 0:00:55]} 14. Ne4 {[%emt 0:00:31]} c4 {[%emt 0:00:26]} 15. Nxf6+ {[%emt 0:00:05]} Nxf6 {[%emt 0:00:05]} 16. Qe2 {[%emt 0:00:01]} Bd6 {[%emt 0:00:29]} 17. g3 {[%emt 0:00:08]} Nd5 {[%emt 0:00:18]} 18. Kb1 {[%emt 0:00:17]} b5 {[%emt 0:00:27]} 19. Rc1 {[%emt 0:00:44]} a5 {[%emt 0:01:41]} 20. Nh4 {[%emt 0:01:30]} O-O {[%emt 0:01:25]} 21. Ng2 {[%emt 0:01:06]} Rfc8 {[%emt 0:00:18]} 22. g4 {[%emt 0:01:08]} b4 {[%emt 0:00:26]} 23. Rh3 {[%emt 0:00:52]} Rab8 {[%emt 0:01:00]} 24. Rg1 {[%emt 0:03:28]} Rb7 {[%emt 0:00:28]} 25. Rc1 {[%emt 0:01:16]} Qc6 {[%emt 0:02:52]} 26. Rf3 {[%emt 0:04:14]} b3 {[%emt 0:01:54]} 27. a3 {[%emt 0:00:11]} Qa4 {[%emt 0:00:02]} 28. Rd1 {[%emt 0:00:50]} Bxa3 {[%emt 0:00:36]} 29. bxa3 {[%emt 0:00:06]} b2 {[%emt 0:00:02]} 30. Ne1 {[%emt 0:00:56]} Qxa3 {[%emt 0:00:10]} 31. Nc2 {[%emt 0:00:02]} Qb3 {[%emt 0:02:42]} 32. Rh3 {[%emt 0:00:27]} a4 {[%emt 0:00:09]} 33. Rhh1 {[%emt 0:00:10]} a3 {[%emt 0:00:02]} 34. Nxa3 {[%emt 0:00:04]} Qxa3 {[%emt 0:00:02]} 35. Qe1 {[%emt 0:00:54]} Ra8 {[%emt 0:00:34]} 36. Be3 {[%emt 0:00:55]} Qb3 {[%emt 0:00:11]} 1/2-1/2

[Event "Kupreichik Memorial Rapid 2019"]
[Site "Minsk"]
[Date "2019.08.16"]
[Round "6.35"]
[White "Stanishevskij, Aleksandr"]
[Black "Tarasionak, Arseni"]
[Result "1-0"]
[ECO "B40"]
[WhiteElo "1830"]
[BlackElo "1209"]
[Annotator "NA"]
[PlyCount "45"]
[EventDate "2019.08.15"]
[EventType "swiss"]
[EventCountry "BLR"]
[SourceTitle "playchess.com"]
[Source "ChessBase"]
[SourceQuality "1"]
[TimeControl "900+10"]

1. e4 {[%emt 0:00:00]} c5 {[%emt 0:00:00]} 2. Nf3 {[%emt 0:00:00]} e6 {[%emt 0:00:00]} 3. d3 {[%emt 0:00:58]} d5 {[%emt 0:00:00]} 4. Nbd2 {[%emt 0:01:01]} Nc6 {[%emt 0:00:03]} 5. g3 {[%emt 0:00:11]} Nf6 {[%emt 0:00:08]} 6. Bg2 {[%emt 0:00:25]} dxe4 {[%emt 0:00:05]} 7. dxe4 {[%emt 0:00:20]} Be7 {[%emt 0:00:27]} 8. O-O {[%emt 0:00:17]} O-O {[%emt 0:00:02]} 9. e5 {[%emt 0:00:47]} Nd7 {[%emt 0:00:11]} 10. Re1 {[%emt 0:00:03]} Qc7 {[%emt 0:00:01]} 11. Qe2 {[%emt 0:00:17]} Nb4 {[%emt 0:01:18]} 12. Nf1 {[%emt 0:01:38]} Rd8 {[%emt 0:03:15]} 13. c3 {[%emt 0:00:15]} Nd5 {[%emt 0:00:03]} 14. h4 {[%emt 0:00:28]} Nf8 {[%emt 0:01:55]} 15. N1h2 {[%emt 0:00:16]} h5 {[%emt 0:00:30]} 16. Bg5 {[%emt 0:01:44]} Nh7 {[%emt 0:05:08]} 17. Bxe7 {[%emt 0:01:25]} Nxe7 {[%emt 0:00:01]} 18. Nf1 {[%emt 0:00:38]} Nf5 {[%emt 0:00:19]} 19. N1d2 {[%emt 0:00:12]} Bd7 20. Ne4 {[%emt 0:01:07]} Bc6 {[%emt 0:00:29]} 21. Nfg5 {[%emt 0:01:55]} Qxe5 {[%emt 0:01:44]} 22. Nxh7 {[%emt 0:00:58]} Kxh7 23. Ng5+ {[%emt 0:00:09]} 1-0

[Event "Kupreichik Memorial Rapid 2019"]
[Site "Minsk"]
[Date "2019.08.16"]
[Round "6.36"]
[White "Melekhov, Artyom"]
[Black "Ostrovskiy, Viktor"]
[Result "0-1"]
[ECO "B95"]
[WhiteElo "1471"]
[BlackElo "1453"]
[Annotator "NA"]
[PlyCount "64"]
[EventDate "2019.08.15"]
[EventType "swiss"]
[EventCountry "BLR"]
[SourceTitle "playchess.com"]
[Source "ChessBase"]
[SourceQuality "1"]
[TimeControl "900+10"]

1. e4 {[%emt 0:00:00]} c5 {[%emt 0:00:00]} 2. Nf3 {[%emt 0:00:00]} d6 {[%emt 0:00:00]} 3. d4 {[%emt 0:00:00]} cxd4 {[%emt 0:00:00]} 4. Nxd4 {[%emt 0:00:00]} Nf6 {[%emt 0:00:00]} 5. Nc3 {[%emt 0:00:00]} a6 {[%emt 0:00:00]} 6. Bg5 {[%emt 0:00:00]} e6 {[%emt 0:00:00]} 7. Qd2 {[%emt 0:00:00]} Be7 {[%emt 0:00:03]} 8. f3 {[%emt 0:00:04]} Nc6 {[%emt 0:01:19]} 9. Be3 {[%emt 0:00:04]} Bd7 {[%emt 0:00:06]} 10. g4 b5 {[%emt 0:00:27]} 11. h4 {[%emt 0:00:55]} Ne5 {[%emt 0:01:36]} 12. Rg1 {[%emt 0:01:52]} Nc4 {[%emt 0:00:04]} 13. Bxc4 {[%emt 0:00:04]} bxc4 {[%emt 0:00:02]} 14. Nde2 {[%emt 0:02:10]} Bc6 {[%emt 0:01:18]} 15. Nf4 {[%emt 0:00:06]} Nd7 {[%emt 0:00:11]} 16. h5 {[%emt 0:00:45]} Ne5 {[%emt 0:00:20]} 17. Qg2 {[%emt 0:00:49]} Bh4+ {[%emt 0:00:22]} 18. Bf2 {[%emt 0:00:05]} Bg5 {[%emt 0:00:27]} 19. Nfe2 {[%emt 0:00:21]} Qf6 {[%emt 0:01:00]} 20. Nd4 {[%emt 0:00:45]} Qf4 {[%emt 0:01:07]} 21. Rd1 {[%emt 0:00:52]} Rb8 {[%emt 0:01:13]} 22. Nce2 {[%emt 0:00:33]} Qf6 {[%emt 0:00:41]} 23. b3 {[%emt 0:00:31]} cxb3 {[%emt 0:00:05]} 24. cxb3 {[%emt 0:00:01]} Bb5 {[%emt 0:00:07]} 25. Nxb5 {[%emt 0:01:20]} axb5 {[%emt 0:00:03]} 26. Nd4 {[%emt 0:00:48]} O-O {[%emt 0:00:50]} 27. Bg3 {[%emt 0:01:04]} Be3 {[%emt 0:00:44]} 28. Rf1 {[%emt 0:00:06]} Bxd4 {[%emt 0:00:18]} 29. Rxd4 {[%emt 0:00:45]} Nxf3+ {[%emt 0:00:03]} 30. Qxf3 {[%emt 0:00:00]} Qxd4 {[%emt 0:00:03]} 31. h6 {[%emt 0:00:35]} Rbc8 {[%emt 0:01:41]} 32. Qf4 {[%emt 0:01:07]} Rc2 {[%emt 0:02:20]} 0-1

[Event "Kupreichik Memorial Rapid 2019"]
[Site "Minsk"]
[Date "2019.08.16"]
[Round "6.37"]
[White "Makarau, Yauheni"]
[Black "Kashtelyan, Valentin"]
[Result "0-1"]
[ECO "B23"]
[WhiteElo "1459"]
[BlackElo "1488"]
[Annotator "NA"]
[PlyCount "86"]
[EventDate "2019.08.15"]
[EventType "swiss"]
[EventCountry "BLR"]
[SourceTitle "playchess.com"]
[Source "ChessBase"]
[SourceQuality "1"]
[TimeControl "900+10"]

1. e4 {[%emt 0:00:00]} c5 {[%emt 0:00:00]} 2. Nc3 {[%emt 0:00:00]} e6 {[%emt 0:00:04]} 3. g3 {[%emt 0:00:00]} Nc6 {[%emt 0:00:02]} 4. Bg2 {[%emt 0:00:00]} Nf6 {[%emt 0:00:13]} 5. d3 {[%emt 0:00:01]} a6 {[%emt 0:00:08]} 6. a4 {[%emt 0:00:01]} Qc7 {[%emt 0:00:05]} 7. h3 Be7 {[%emt 0:00:05]} 8. Be3 {[%emt 0:00:16]} d6 {[%emt 0:00:05]} 9. Nge2 {[%emt 0:00:03]} O-O {[%emt 0:00:03]} 10. f4 {[%emt 0:00:07]} Rb8 {[%emt 0:00:12]} 11. g4 {[%emt 0:01:13]} Nd7 {[%emt 0:00:20]} 12. Ng3 {[%emt 0:01:40]} Bh4 {[%emt 0:00:21]} 13. Nce2 {[%emt 0:00:02]} b5 {[%emt 0:00:25]} 14. axb5 {[%emt 0:00:03]} axb5 {[%emt 0:00:08]} 15. O-O {[%emt 0:00:37]} Bxg3 {[%emt 0:00:11]} 16. Nxg3 {[%emt 0:00:01]} b4 {[%emt 0:00:16]} 17. Ne2 {[%emt 0:01:32]} Bb7 {[%emt 0:00:06]} 18. Qe1 {[%emt 0:00:07]} Ra8 {[%emt 0:00:04]} 19. Qh4 {[%emt 0:00:05]} Rxa1 {[%emt 0:00:11]} 20. Rxa1 {[%emt 0:00:01]} Ra8 {[%emt 0:00:12]} 21. Rc1 {[%emt 0:05:58]} Nf8 {[%emt 0:00:31]} 22. f5 {[%emt 0:00:06]} f6 {[%emt 0:02:45]} 23. Nf4 {[%emt 0:01:06]} Nd8 {[%emt 0:02:12]} 24. Nh5 {[%emt 0:00:48]} Qf7 {[%emt 0:01:44]} 25. Rf1 {[%emt 0:02:28]} e5 {[%emt 0:00:28]} 26. g5 {[%emt 0:00:38]} fxg5 {[%emt 0:02:13]} 27. Bxg5 {[%emt 0:00:47]} Nc6 {[%emt 0:00:38]} 28. Be3 {[%emt 0:00:56]} Nd4 {[%emt 0:00:34]} 29. Bxd4 {[%emt 0:00:03]} cxd4 {[%emt 0:00:13]} 30. Rf3 {[%emt 0:00:00]} Ra7 {[%emt 0:04:03]} 31. Rg3 {[%emt 0:00:06]} g6 {[%emt 0:00:21]} 32. fxg6 {[%emt 0:00:30]} Nxg6 {[%emt 0:00:08]} 33. Qd8+ {[%emt 0:00:37]} Qf8 {[%emt 0:00:26]} 34. Nf6+ {[%emt 0:00:19]} Kg7 {[%emt 0:00:19]} 35. Qxf8+ {[%emt 0:00:17]} Kxf8 {[%emt 0:00:07]} 36. Nxh7+ {[%emt 0:00:05]} Kf7 {[%emt 0:00:28]} 37. Ng5+ {[%emt 0:00:00]} Kf6 {[%emt 0:00:17]} 38. Nf3 {[%emt 0:00:12]} Nf4 {[%emt 0:00:16]} 39. Bf1 {[%emt 0:00:24]} Ra2 {[%emt 0:00:04]} 40. Ne1 {[%emt 0:00:18]} Rxb2 {[%emt 0:00:07]} 41. h4 {[%emt 0:00:05]} Rb1 {[%emt 0:00:06]} 42. Kf2 {[%emt 0:00:00]} b3 {[%emt 0:00:09]} 43. cxb3 Rxb3 {[%emt 0:00:01]} 0-1

[Event "Kupreichik Memorial Rapid 2019"]
[Site "Minsk"]
[Date "2019.08.16"]
[Round "6.38"]
[White "Ustiugov, Boris"]
[Black "Lashkevich, Andrei"]
[Result "1/2-1/2"]
[ECO "A40"]
[WhiteElo "1567"]
[BlackElo "1447"]
[Annotator "NA"]
[PlyCount "81"]
[EventDate "2019.08.15"]
[EventType "swiss"]
[EventCountry "BLR"]
[SourceTitle "playchess.com"]
[Source "ChessBase"]
[SourceQuality "1"]
[TimeControl "900+10"]

1. d4 {[%emt 0:00:00]} c6 {[%emt 0:00:00]} 2. Nf3 {[%emt 0:00:00]} d6 {[%emt 0:00:00]} 3. g3 {[%emt 0:00:03]} Nd7 {[%emt 0:00:00]} 4. Bg2 {[%emt 0:00:02]} h6 {[%emt 0:00:00]} 5. O-O {[%emt 0:00:15]} g5 {[%emt 0:00:06]} 6. Nc3 {[%emt 0:00:25]} Bg7 {[%emt 0:00:08]} 7. e4 {[%emt 0:00:14]} Qa5 {[%emt 0:00:30]} 8. Ne2 {[%emt 0:00:32]} g4 {[%emt 0:00:36]} 9. Nh4 {[%emt 0:00:07]} Nf8 {[%emt 0:00:03]} 10. Bd2 {[%emt 0:00:28]} Qh5 {[%emt 0:02:27]} 11. Nf4 {[%emt 0:00:30]} Qb5 {[%emt 0:00:04]} 12. Bc3 {[%emt 0:00:20]} Bf6 {[%emt 0:01:33]} 13. a4 {[%emt 0:00:36]} Qg5 {[%emt 0:01:00]} 14. Re1 {[%emt 0:01:10]} Ne6 {[%emt 0:01:32]} 15. Nxe6 {[%emt 0:00:18]} Bxe6 {[%emt 0:00:18]} 16. Qe2 {[%emt 0:01:42]} Qh5 {[%emt 0:00:45]} 17. d5 {[%emt 0:00:29]} Bxc3 {[%emt 0:00:08]} 18. bxc3 {[%emt 0:00:02]} Bd7 {[%emt 0:00:18]} 19. c4 {[%emt 0:01:07]} c5 {[%emt 0:00:18]} 20. a5 {[%emt 0:00:30]} Qe5 {[%emt 0:00:14]} 21. Qd3 {[%emt 0:00:56]} h5 {[%emt 0:01:39]} 22. c3 {[%emt 0:00:08]} Nh6 {[%emt 0:00:12]} 23. f4 {[%emt 0:00:29]} gxf3 {[%emt 0:00:11]} 24. Nxf3 {[%emt 0:00:04]} Qg7 {[%emt 0:00:25]} 25. e5 {[%emt 0:01:22]} Kf8 {[%emt 0:01:44]} 26. e6 {[%emt 0:00:30]} fxe6 {[%emt 0:00:26]} 27. dxe6 {[%emt 0:00:06]} Bc6 {[%emt 0:00:02]} 28. Nh4 {[%emt 0:01:19]} Ke8 {[%emt 0:01:12]} 29. Bxc6+ {[%emt 0:00:19]} bxc6 {[%emt 0:00:02]} 30. Qe4 {[%emt 0:00:33]} Rc8 {[%emt 0:00:22]} 31. Rab1 {[%emt 0:00:23]} Qxc3 {[%emt 0:01:10]} 32. Rbd1 {[%emt 0:01:39]} Rg8 {[%emt 0:00:47]} 33. Rd3 {[%emt 0:01:08]} Qxa5 {[%emt 0:01:28]} 34. Rf1 {[%emt 0:00:36]} Ng4 {[%emt 0:00:39]} 35. Qh7 {[%emt 0:00:52]} Rf8 {[%emt 0:00:15]} 36. Qg6+ {[%emt 0:00:19]} Kd8 {[%emt 0:00:00]} 37. Rxf8+ {[%emt 0:00:03]} Kc7 {[%emt 0:00:01]} 38. Rxc8+ {[%emt 0:00:19]} Kxc8 {[%emt 0:00:01]} 39. Qe8+ {[%emt 0:00:16]} Kb7 {[%emt 0:00:01]} 40. Rb3+ {[%emt 0:00:20]} Kc7 {[%emt 0:00:24]} 41. Qb8# {[%emt 0:00:04]} 1/2-1/2

[Event "Kupreichik Memorial Rapid 2019"]
[Site "Minsk"]
[Date "2019.08.16"]
[Round "6.40"]
[White "Lavrishchev, Matvei"]
[Black "Uzlavataya, Anhelina"]
[Result "0-1"]
[ECO "A00"]
[WhiteElo "1175"]
[BlackElo "2051"]
[Annotator "NA"]
[PlyCount "76"]
[EventDate "2019.08.15"]
[EventType "swiss"]
[EventCountry "BLR"]
[SourceTitle "playchess.com"]
[Source "ChessBase"]
[SourceQuality "1"]
[TimeControl "900+10"]

1. g3 {[%emt 0:00:00]} f5 {[%emt 0:00:00]} 2. Bg2 {[%emt 0:00:00]} Nf6 {[%emt 0:00:00]} 3. Nc3 {[%emt 0:00:00]} g6 {[%emt 0:00:00]} 4. b3 {[%emt 0:00:00]} Bg7 {[%emt 0:00:01]} 5. Bb2 {[%emt 0:00:00]} e5 {[%emt 0:00:42]} 6. e3 {[%emt 0:00:03]} O-O {[%emt 0:00:16]} 7. Nge2 {[%emt 0:00:02]} d5 {[%emt 0:01:21]} 8. O-O {[%emt 0:00:08]} Be6 {[%emt 0:00:38]} 9. d4 {[%emt 0:01:06]} e4 {[%emt 0:00:54]} 10. Qd2 {[%emt 0:00:20]} Nbd7 {[%emt 0:00:10]} 11. Nf4 {[%emt 0:00:04]} Bf7 {[%emt 0:00:06]} 12. Rac1 {[%emt 0:00:10]} c6 {[%emt 0:00:14]} 13. Nd1 {[%emt 0:00:08]} g5 {[%emt 0:00:33]} 14. Ne2 {[%emt 0:00:01]} Nh5 {[%emt 0:00:14]} 15. c4 {[%emt 0:00:07]} Be6 {[%emt 0:00:32]} 16. c5 {[%emt 0:00:16]} f4 {[%emt 0:01:07]} 17. exf4 {[%emt 0:00:04]} gxf4 {[%emt 0:00:03]} 18. gxf4 {[%emt 0:00:10]} Bh6 {[%emt 0:01:44]} 19. f3 {[%emt 0:00:22]} Nxf4 {[%emt 0:00:48]} 20. Nxf4 {[%emt 0:00:08]} Bxf4 {[%emt 0:00:10]} 21. Qe2 {[%emt 0:00:09]} Qh4 {[%emt 0:00:12]} 22. Bh1 {[%emt 0:00:57]} Kh8 {[%emt 0:01:05]} 23. Rf2 {[%emt 0:00:23]} Rg8+ {[%emt 0:00:44]} 24. Kf1 {[%emt 0:00:01]} Bh3+ {[%emt 0:00:33]} 25. Bg2 {[%emt 0:00:10]} Bxg2+ {[%emt 0:01:46]} 26. Rxg2 {[%emt 0:00:01]} Rxg2 27. Qxg2 {[%emt 0:00:01]} Rg8 {[%emt 0:00:18]} 28. Qf2 {[%emt 0:00:08]} Qh3+ {[%emt 0:00:56]} 29. Ke1 {[%emt 0:00:07]} Bxh2 {[%emt 0:00:13]} 30. Ne3 {[%emt 0:00:14]} Bg3 {[%emt 0:00:07]} 31. Qxg3 Qxg3+ {[%emt 0:00:04]} 32. Kd2 {[%emt 0:00:08]} Qf2+ {[%emt 0:00:06]} 33. Kc3 {[%emt 0:00:03]} Qxe3+ {[%emt 0:00:04]} 34. Kb4 {[%emt 0:00:03]} Qd2+ {[%emt 0:00:11]} 35. Bc3 {[%emt 0:00:04]} Qxc1 {[%emt 0:00:03]} 36. a4 {[%emt 0:00:01]} a5+ {[%emt 0:00:46]} 37. Kxa5 {[%emt 0:00:01]} Qxc3+ {[%emt 0:00:02]} 38. b4 {[%emt 0:00:01]} Ra8# {[%emt 0:00:02]} 0-1